[Event "Championnat d'Europe Rapide"]
[Date "2024.12.07"]
[White "Denk, Adolf"]
[Black "Larkin, Vladyslav"]
[WhiteElo "2113"]
[BlackElo "2449"]
[Round "5.39"]
[Result "1/2-1/2"]
[TimeControl "900+10"]

1. d4 {[%emt 00:00:02] [%clk 00:15:19]} d6 {[%emt 00:00:03] [%clk 00:15:16]} 2.
Nf3 {[%emt 00:00:06] [%clk 00:15:22]} Bg4 {[%emt 00:00:01] [%clk 00:15:25]} 3.
Nbd2 {[%emt 00:00:08] [%clk 00:15:24]} Nf6 {[%emt 00:00:08] [%clk 00:15:27]} 4.
c3 {[%emt 00:00:31] [%clk 00:15:03]} c6 {[%emt 00:00:02] [%clk 00:15:35]} 5. g3
{[%emt 00:00:22] [%clk 00:14:51]} Nbd7 {[%emt 00:00:06] [%clk 00:15:40]} 6. Bg2
{[%emt 00:00:05] [%clk 00:14:56]} e5 {[%emt 00:00:02] [%clk 00:15:47]} 7. e4
{[%emt 00:00:28] [%clk 00:14:38]} Be7 {[%emt 00:00:02] [%clk 00:15:55]} 8. Qc2
{[%emt 00:00:09] [%clk 00:14:39]} a5 {[%emt 00:00:05] [%clk 00:16:01]} 9. a4
{[%emt 00:00:16] [%clk 00:14:32]} O-O {[%emt 00:00:03] [%clk 00:16:08]} 10. O-O
{[%emt 00:00:06] [%clk 00:14:37]} Re8 {[%emt 00:00:06] [%clk 00:16:11]} 11. b3
{[%emt 00:00:19] [%clk 00:14:28]} Bf8 {[%emt 00:00:41] [%clk 00:15:41]} 12. Re1
{[%emt 00:00:16] [%clk 00:14:22]} Qc7 {[%emt 00:00:09] [%clk 00:15:42]} 13. dxe5
{[%emt 00:01:16] [%clk 00:13:16]} dxe5 {[%emt 00:00:02] [%clk 00:15:50]} 14. h3
{[%emt 00:00:22] [%clk 00:13:04]} Bxf3 {[%emt 00:00:14] [%clk 00:15:47]} 15.
Nxf3 {[%emt 00:01:32] [%clk 00:11:42]} Nc5 {[%emt 00:00:48] [%clk 00:15:08]} 16.
Bg5 {[%emt 00:00:16] [%clk 00:11:35]} Nfd7 {[%emt 00:00:03] [%clk 00:15:17]} 17.
Rad1 {[%emt 00:00:27] [%clk 00:11:18]} Ne6 {[%emt 00:00:05] [%clk 00:15:21]} 18.
Bc1 {[%emt 00:00:11] [%clk 00:11:17]} Rad8 {[%emt 00:01:01] [%clk 00:14:30]} 19.
h4 {[%emt 00:00:11] [%clk 00:11:16]} Nec5 {[%emt 00:00:38] [%clk 00:14:02]} 20.
Nd2 {[%emt 00:00:42] [%clk 00:10:43]} Nb6 {[%emt 00:00:29] [%clk 00:13:44]} 21.
Bf1 {[%emt 00:00:10] [%clk 00:10:42]} Qc8 {[%emt 00:01:21] [%clk 00:12:33]} 22.
Kg2 {[%emt 00:01:15] [%clk 00:09:36]} Rd7 {[%emt 00:03:27] [%clk 00:09:17]} 23.
Nc4 {[%emt 00:01:12] [%clk 00:08:35]} Nxc4 {[%emt 00:00:03] [%clk 00:09:24]} 24.
Bxc4 {[%emt 00:00:01] [%clk 00:08:44]} Red8 {[%emt 00:00:15] [%clk 00:09:19]}
25. f3 {[%emt 00:00:19] [%clk 00:08:34]} h6 {[%emt 00:00:45] [%clk 00:08:44]}
26. Be3 {[%emt 00:00:22] [%clk 00:08:21]} Rxd1 {[%emt 00:03:21] [%clk 00:05:33]}
27. Rxd1 {[%emt 00:00:02] [%clk 00:08:29]} Rxd1 {[%emt 00:00:02] [%clk
00:05:41]} 28. Qxd1 {[%emt 00:00:03] [%clk 00:08:37]} Qd7 {[%emt 00:00:02] [%clk
00:05:49]} 29. Qxd7 {[%emt 00:01:31] [%clk 00:07:16]} Nxd7 {[%emt 00:00:01]
[%clk 00:05:58]} 30. Kf1 {[%emt 00:00:28] [%clk 00:06:58]} Bc5 {[%emt 00:00:07]
[%clk 00:06:01]} 31. Bd2 {[%emt 00:00:03] [%clk 00:07:05]} Kf8 {[%emt 00:00:04]
[%clk 00:06:07]} 32. Ke2 {[%emt 00:00:14] [%clk 00:07:01]} Ke7 {[%emt 00:00:07]
[%clk 00:06:09]} 33. Be1 {[%emt 00:01:30] [%clk 00:05:41]} Bg1 {[%emt 00:00:41]
[%clk 00:05:38]} 34. b4 {[%emt 00:00:32] [%clk 00:05:20]} Bb6 {[%emt 00:00:04]
[%clk 00:05:45]} 35. Kd3 {[%emt 00:00:34] [%clk 00:04:56]} Nf6 {[%emt 00:00:22]
[%clk 00:05:33]} 36. Bb3 {[%emt 00:00:23] [%clk 00:04:43]} Nd7 {[%emt 00:04:29]
[%clk 00:01:14]} 37. Bd1 {[%emt 00:00:37] [%clk 00:04:15]} Kd6 {[%emt 00:00:18]
[%clk 00:01:06]} 38. Kc4 {[%emt 00:00:24] [%clk 00:04:01]} f6 {[%emt 00:00:10]
[%clk 00:01:07]} 39. Be2 {[%emt 00:00:27] [%clk 00:03:44]} Bd8 {[%emt 00:00:36]
[%clk 00:00:41]} 40. Bf1 {[%emt 00:00:19] [%clk 00:03:35]} Bb6 {[%emt 00:00:11]
[%clk 00:00:40]} 41. Bh3 {[%emt 00:00:05] [%clk 00:03:40]} axb4 {[%emt 00:00:28]
[%clk 00:00:22]} 42. cxb4 {[%emt 00:00:03] [%clk 00:03:47]} Bd4 {[%emt 00:00:02]
[%clk 00:00:30]} 43. h5 {[%emt 00:01:29] [%clk 00:02:28]} Nb6+ {[%emt 00:00:22]
[%clk 00:00:18]} 44. Kb3 {[%emt 00:00:02] [%clk 00:02:36]} Na8 {[%emt 00:00:14]
[%clk 00:00:14]} 45. Bc8 {[%emt 00:01:04] [%clk 00:01:41]} Kc7 {[%emt 00:00:01]
[%clk 00:00:23]} 46. Be6 {[%emt 00:00:07] [%clk 00:01:44]} b5 {[%emt 00:00:02]
[%clk 00:00:32]} 47. axb5 {[%emt 00:00:19] [%clk 00:01:35]} cxb5 {[%emt
00:00:02] [%clk 00:00:40]} 48. Bf7 {[%emt 00:00:05] [%clk 00:01:41]} Nb6 {[%emt
00:00:02] [%clk 00:00:48]} 49. Be8 {[%emt 00:00:09] [%clk 00:01:41]} Nd7 {[%emt
00:00:06] [%clk 00:00:52]} 50. Bc3 {[%emt 00:00:44] [%clk 00:01:08]} Bxc3 {[%emt
00:00:21] [%clk 00:00:40]} 51. Kxc3 {[%emt 00:00:09] [%clk 00:01:08]} Kd8 {[%emt
00:00:02] [%clk 00:00:49]} 52. Bxd7 {[%emt 00:00:12] [%clk 00:01:06]} 1/2-1/2

[Site "Europe Echecs"]

[Event "Championnat d'Europe Rapide"]
[Date "2024.12.07"]
[White "Peyrer, Konstantin"]
[Black "Radeva, Viktoria"]
[WhiteElo "2440"]
[BlackElo "2275"]
[Round "5.40"]
[Result "1-0"]
[TimeControl "900+10"]

1. Nf3 {[%emt 00:00:03] [%clk 00:15:17]} d5 {[%emt 00:00:04] [%clk 00:15:15]} 2.
g3 {[%emt 00:00:03] [%clk 00:15:24]} Nf6 {[%emt 00:00:03] [%clk 00:15:22]} 3.
Bg2 {[%emt 00:00:02] [%clk 00:15:33]} e6 {[%emt 00:00:11] [%clk 00:15:22]} 4. c4
{[%emt 00:00:02] [%clk 00:15:40]} Be7 {[%emt 00:00:35] [%clk 00:14:57]} 5. O-O
{[%emt 00:00:06] [%clk 00:15:45]} O-O {[%emt 00:00:03] [%clk 00:15:04]} 6. b3
{[%emt 00:00:03] [%clk 00:15:52]} c5 {[%emt 00:00:58] [%clk 00:14:15]} 7. cxd5
{[%emt 00:00:16] [%clk 00:15:47]} exd5 {[%emt 00:00:20] [%clk 00:14:05]} 8. d4
{[%emt 00:00:17] [%clk 00:15:40]} Nc6 {[%emt 00:00:30] [%clk 00:13:44]} 9. Bb2
{[%emt 00:00:03] [%clk 00:15:48]} h6 {[%emt 00:02:08] [%clk 00:11:47]} 10. Nc3
{[%emt 00:01:02] [%clk 00:14:55]} Be6 {[%emt 00:00:09] [%clk 00:11:48]} 11. Rc1
{[%emt 00:00:16] [%clk 00:14:49]} Qa5 {[%emt 00:02:19] [%clk 00:09:40]} 12. dxc5
{[%emt 00:00:27] [%clk 00:14:32]} Bxc5 {[%emt 00:00:12] [%clk 00:09:39]} 13. a3
{[%emt 00:00:14] [%clk 00:14:28]} Be7 {[%emt 00:01:07] [%clk 00:08:42]} 14. b4
{[%emt 00:00:21] [%clk 00:14:16]} Qd8 {[%emt 00:00:04] [%clk 00:08:48]} 15. Na4
{[%emt 00:00:28] [%clk 00:13:56]} Ne4 {[%emt 00:00:27] [%clk 00:08:33]} 16. Nd2
{[%emt 00:00:41] [%clk 00:13:25]} Bf5 {[%emt 00:00:55] [%clk 00:07:48]} 17. Nb3
{[%emt 00:00:37] [%clk 00:12:58]} Bg5 {[%emt 00:01:18] [%clk 00:06:40]} 18. e3
{[%emt 00:00:33] [%clk 00:12:35]} Rc8 {[%emt 00:00:50] [%clk 00:06:00]} 19. Qe2
{[%emt 00:03:25] [%clk 00:09:19]} Qe7 {[%emt 00:01:05] [%clk 00:05:06]} 20. b5
{[%emt 00:00:25] [%clk 00:09:04]} Nb8 {[%emt 00:00:30] [%clk 00:04:47]} 21. Nd4
{[%emt 00:00:08] [%clk 00:09:05]} Bd7 {[%emt 00:00:57] [%clk 00:04:00]} 22. Nc3
{[%emt 00:00:22] [%clk 00:08:53]} Nxc3 {[%emt 00:00:24] [%clk 00:03:47]} 23.
Bxc3 {[%emt 00:00:02] [%clk 00:09:00]} Qxa3 {[%emt 00:00:18] [%clk 00:03:40]}
24. Qd2 {[%emt 00:00:01] [%clk 00:09:08]} Be7 {[%emt 00:01:57] [%clk 00:01:53]}
25. Bxd5 {[%emt 00:00:04] [%clk 00:09:13]} Bh3 {[%emt 00:01:04] [%clk 00:01:00]}
26. Rfd1 {[%emt 00:00:06] [%clk 00:09:17]} b6 {[%emt 00:00:28] [%clk 00:00:43]}
27. Bb2 {[%emt 00:00:34] [%clk 00:08:52]} Qd6 {[%emt 00:00:07] [%clk 00:00:46]}
28. Nc6 {[%emt 00:00:13] [%clk 00:08:50]} Nxc6 {[%emt 00:00:22] [%clk 00:00:33]}
29. bxc6 {[%emt 00:00:02] [%clk 00:08:58]} Qg6 {[%emt 00:00:10] [%clk 00:00:34]}
30. Bf3 {[%emt 00:00:33] [%clk 00:08:35]} Bc5 {[%emt 00:00:19] [%clk 00:00:25]}
31. Qd5 {[%emt 00:00:27] [%clk 00:08:18]} Be6 {[%emt 00:00:09] [%clk 00:00:27]}
32. Qe5 {[%emt 00:00:15] [%clk 00:08:13]} Rfe8 {[%emt 00:00:04] [%clk 00:00:33]}
33. Be4 {[%emt 00:00:47] [%clk 00:07:35]} Qg5 {[%emt 00:00:05] [%clk 00:00:39]}
34. Qxg5 {[%emt 00:00:38] [%clk 00:07:08]} hxg5 {[%clk 00:00:48]} 35. Rd7 {[%emt
00:00:06] [%clk 00:07:12]} Bb3 {[%emt 00:00:29] [%clk 00:00:29]} 36. Bf3 {[%emt
00:00:15] [%clk 00:07:07]} g4 {[%emt 00:00:09] [%clk 00:00:30]} 37. Bxg4 {[%emt
00:00:06] [%clk 00:07:11]} Rxc6 {[%emt 00:00:03] [%clk 00:00:38]} 38. Rxa7
{[%emt 00:00:02] [%clk 00:07:18]} Rxe3 {[%emt 00:00:23] [%clk 00:00:25]} 39.
Ra8+ {[%emt 00:00:02] [%clk 00:07:25]} Kh7 {[%emt 00:00:01] [%clk 00:00:35]} 40.
Bf5+ {[%emt 00:00:03] [%clk 00:07:32]} Kh6 {[%emt 00:00:05] [%clk 00:00:40]} 41.
h4 {[%emt 00:00:20] [%clk 00:07:23]} Rxg3+ {[%emt 00:00:34] [%clk 00:00:16]} 42.
Kh2 {[%clk 00:07:32]} 1-0

[Site "Europe Echecs"]

[Event "Championnat d'Europe Rapide"]
[Date "2024.12.07"]
[White "Maltsevskaya, Aleksandra"]
[Black "Paichadze, Luka"]
[WhiteElo "2368"]
[BlackElo "2532"]
[Round "5.41"]
[Result "0-1"]
[TimeControl "900+10"]

1. e4 {[%emt 00:00:02] [%clk 00:15:17]} c6 {[%emt 00:00:02] [%clk 00:15:19]} 2.
d4 {[%emt 00:00:02] [%clk 00:15:25]} d5 {[%emt 00:00:03] [%clk 00:15:28]} 3. e5
{[%emt 00:00:22] [%clk 00:15:11]} Bf5 {[%emt 00:00:02] [%clk 00:15:36]} 4. c4
{[%emt 00:00:02] [%clk 00:15:18]} e6 {[%emt 00:00:03] [%clk 00:15:43]} 5. h4
{[%emt 00:00:02] [%clk 00:15:26]} h5 {[%emt 00:00:13] [%clk 00:15:40]} 6. Nc3
{[%emt 00:00:03] [%clk 00:15:33]} dxc4 {[%emt 00:00:04] [%clk 00:15:46]} 7. Bxc4
{[%emt 00:00:03] [%clk 00:15:40]} Nd7 {[%emt 00:00:02] [%clk 00:15:54]} 8. Nge2
{[%emt 00:00:38] [%clk 00:15:12]} Nb6 {[%emt 00:00:09] [%clk 00:15:55]} 9. Bb3
{[%emt 00:00:02] [%clk 00:15:20]} Be7 {[%emt 00:00:06] [%clk 00:15:58]} 10. Ng3
{[%emt 00:00:26] [%clk 00:15:04]} Bg6 {[%emt 00:00:02] [%clk 00:16:06]} 11. Nge4
{[%emt 00:00:12] [%clk 00:15:02]} Nd5 {[%emt 00:00:03] [%clk 00:16:13]} 12. Qf3
{[%emt 00:01:49] [%clk 00:13:23]} Nh6 {[%emt 00:00:48] [%clk 00:15:35]} 13. Bg5
{[%emt 00:01:10] [%clk 00:12:23]} Nf5 {[%emt 00:01:02] [%clk 00:14:43]} 14. Rd1
{[%emt 00:00:11] [%clk 00:12:22]} Qb6 {[%emt 00:01:41] [%clk 00:13:12]} 15. Bxe7
{[%emt 00:06:06] [%clk 00:06:26]} Ndxe7 {[%emt 00:00:56] [%clk 00:12:27]} 16.
Qf4 {[%emt 00:01:07] [%clk 00:05:29]} O-O-O {[%emt 00:01:25] [%clk 00:11:12]}
17. O-O {[%emt 00:00:03] [%clk 00:05:36]} Kb8 {[%emt 00:00:27] [%clk 00:10:56]}
18. Nd6 {[%emt 00:01:25] [%clk 00:04:21]} Nxd6 {[%emt 00:02:57] [%clk 00:08:08]}
19. exd6 {[%emt 00:00:02] [%clk 00:04:29]} Nf5 {[%emt 00:00:23] [%clk 00:07:55]}
20. Bc2 {[%emt 00:02:42] [%clk 00:01:57]} Qb4 {[%emt 00:00:49] [%clk 00:07:16]}
21. Ne4 {[%emt 00:01:16] [%clk 00:00:51]} Nxd4 {[%emt 00:01:03] [%clk 00:06:23]}
22. Rxd4 {[%emt 00:00:47] [%clk 00:00:15]} Qxd4 {[%emt 00:00:02] [%clk
00:06:30]} 23. Rd1 {[%emt 00:00:02] [%clk 00:00:24]} e5 {[%emt 00:02:38] [%clk
00:04:02]} 24. Qc1 {[%emt 00:00:22] [%clk 00:00:12]} Qc4 {[%emt 00:01:03] [%clk
00:03:08]} 25. b3 {[%emt 00:00:03] [%clk 00:00:21]} Qe2 {[%emt 00:00:11] [%clk
00:03:06]} 26. Rd2 {[%emt 00:00:20] [%clk 00:00:11]} Qb5 {[%emt 00:00:33] [%clk
00:02:43]} 27. Nc3 {[%emt 00:00:07] [%clk 00:00:15]} Qc5 {[%emt 00:00:13] [%clk
00:02:39]} 28. Bxg6 {[%emt 00:00:03] [%clk 00:00:22]} fxg6 {[%emt 00:00:02]
[%clk 00:02:48]} 29. Qa1 {[%emt 00:00:17] [%clk 00:00:16]} Qb4 {[%emt 00:00:22]
[%clk 00:02:35]} 30. a3 {[%emt 00:00:12] [%clk 00:00:14]} Qxh4 {[%emt 00:00:20]
[%clk 00:02:25]} 31. f3 {[%emt 00:00:07] [%clk 00:00:17]} Qf4 {[%emt 00:00:13]
[%clk 00:02:21]} 32. Ne4 {[%emt 00:00:07] [%clk 00:00:21]} h4 {[%emt 00:00:13]
[%clk 00:02:18]} 33. Qc3 {[%emt 00:00:01] [%clk 00:00:30]} g5 {[%emt 00:01:11]
[%clk 00:01:17]} 34. Nc5 {[%emt 00:00:11] [%clk 00:00:29]} h3 {[%emt 00:00:07]
[%clk 00:01:20]} 35. Ne6 {[%emt 00:00:03] [%clk 00:00:37]} Qg3 {[%emt 00:00:04]
[%clk 00:01:26]} 36. Qe3 {[%emt 00:00:24] [%clk 00:00:23]} Rxd6 {[%emt 00:00:14]
[%clk 00:01:22]} 0-1

[Site "Europe Echecs"]

[Event "Championnat d'Europe Rapide"]
[Date "2024.12.07"]
[White "Kukov, Velislav"]
[Black "Stankovic, Milos"]
[WhiteElo "2316"]
[BlackElo "2462"]
[Round "5.42"]
[Result "1/2-1/2"]
[TimeControl "900+10"]

1. d4 {[%emt 00:00:01] [%clk 00:15:18]} d5 {[%emt 00:00:03] [%clk 00:15:17]} 2.
Nf3 {[%emt 00:00:07] [%clk 00:15:21]} Nf6 {[%emt 00:00:11] [%clk 00:15:16]} 3.
Bf4 {[%emt 00:00:26] [%clk 00:15:05]} e6 {[%emt 00:00:02] [%clk 00:15:25]} 4. e3
{[%emt 00:00:03] [%clk 00:15:12]} Bd6 {[%emt 00:00:02] [%clk 00:15:33]} 5. Bg3
{[%emt 00:00:02] [%clk 00:15:20]} O-O {[%emt 00:00:07] [%clk 00:15:37]} 6. Nbd2
{[%emt 00:00:03] [%clk 00:15:27]} b6 {[%emt 00:00:19] [%clk 00:15:28]} 7. c3
{[%emt 00:00:03] [%clk 00:15:34]} c5 {[%emt 00:00:04] [%clk 00:15:33]} 8. Ne5
{[%emt 00:00:05] [%clk 00:15:39]} Qc7 {[%emt 00:00:14] [%clk 00:15:29]} 9. Bd3
{[%emt 00:00:12] [%clk 00:15:38]} Ba6 {[%emt 00:00:05] [%clk 00:15:34]} 10. Bxa6
{[%emt 00:00:13] [%clk 00:15:34]} Nxa6 {[%emt 00:00:02] [%clk 00:15:41]} 11. O-O
{[%emt 00:00:22] [%clk 00:15:23]} Nb8 {[%emt 00:00:02] [%clk 00:15:49]} 12. Qe2
{[%emt 00:00:11] [%clk 00:15:22]} Nc6 {[%emt 00:00:06] [%clk 00:15:52]} 13. Nxc6
{[%emt 00:00:14] [%clk 00:15:20]} Qxc6 {[%emt 00:00:02] [%clk 00:16:00]} 14.
Bxd6 {[%emt 00:02:13] [%clk 00:13:17]} Qxd6 {[%emt 00:00:01] [%clk 00:16:08]}
15. f4 {[%emt 00:00:09] [%clk 00:13:18]} b5 {[%emt 00:01:51] [%clk 00:14:28]}
16. Nb3 {[%emt 00:02:41] [%clk 00:10:47]} c4 {[%emt 00:02:18] [%clk 00:12:19]}
17. Nc5 {[%emt 00:00:02] [%clk 00:10:55]} a5 {[%emt 00:00:10] [%clk 00:12:20]}
18. e4 {[%emt 00:00:26] [%clk 00:10:39]} Nxe4 {[%emt 00:02:24] [%clk 00:10:05]}
19. Nxe4 {[%emt 00:00:03] [%clk 00:10:46]} dxe4 {[%emt 00:00:02] [%clk
00:10:13]} 20. Qxe4 {[%emt 00:00:02] [%clk 00:10:54]} Qd5 {[%emt 00:00:21] [%clk
00:10:02]} 21. Qxd5 {[%emt 00:02:59] [%clk 00:08:06]} 1/2-1/2

[Site "Europe Echecs"]

[Event "Championnat d'Europe Rapide"]
[Date "2024.12.07"]
[White "Tudor, Henry Edward"]
[Black "Samunenkov, Ihor"]
[WhiteElo "2375"]
[BlackElo "2543"]
[Round "5.43"]
[Result "1/2-1/2"]
[TimeControl "900+10"]

1. d4 {[%emt 00:00:01] [%clk 00:15:18]} Nf6 {[%emt 00:00:06] [%clk 00:15:14]} 2.
c4 {[%emt 00:00:03] [%clk 00:15:25]} e6 {[%emt 00:00:03] [%clk 00:15:22]} 3. Nc3
{[%emt 00:00:04] [%clk 00:15:31]} Bb4 {[%emt 00:00:03] [%clk 00:15:29]} 4. e3
{[%emt 00:00:13] [%clk 00:15:27]} O-O {[%emt 00:00:06] [%clk 00:15:34]} 5. Bd2
{[%emt 00:00:41] [%clk 00:14:56]} d5 {[%emt 00:00:20] [%clk 00:15:23]} 6. Nf3
{[%emt 00:00:03] [%clk 00:15:03]} b6 {[%emt 00:00:02] [%clk 00:15:31]} 7. cxd5
{[%emt 00:00:41] [%clk 00:14:32]} exd5 {[%emt 00:00:03] [%clk 00:15:38]} 8. Rc1
{[%emt 00:00:09] [%clk 00:14:33]} Re8 {[%emt 00:00:09] [%clk 00:15:39]} 9. Bd3
{[%emt 00:03:42] [%clk 00:11:01]} c5 {[%emt 00:00:22] [%clk 00:15:27]} 10. O-O
{[%emt 00:00:51] [%clk 00:10:20]} c4 {[%emt 00:02:21] [%clk 00:13:17]} 11. Bb1
{[%emt 00:00:02] [%clk 00:10:28]} Nc6 {[%emt 00:00:47] [%clk 00:12:40]} 12. Qa4
{[%emt 00:02:08] [%clk 00:08:30]} Bd7 {[%emt 00:00:41] [%clk 00:12:09]} 13. Qc2
{[%emt 00:00:02] [%clk 00:08:38]} g6 {[%emt 00:01:03] [%clk 00:11:15]} 14. Ne2
{[%emt 00:00:30] [%clk 00:08:18]} Bd6 {[%emt 00:00:32] [%clk 00:10:54]} 15. Ng3
{[%emt 00:02:24] [%clk 00:06:04]} b5 {[%emt 00:00:17] [%clk 00:10:47]} 16. Rfe1
{[%emt 00:00:20] [%clk 00:05:54]} Qb6 {[%emt 00:01:15] [%clk 00:09:42]} 17. Qd1
{[%emt 00:00:33] [%clk 00:05:31]} Rac8 {[%emt 00:02:21] [%clk 00:07:31]} 18. Ng5
{[%emt 00:00:19] [%clk 00:05:21]} Bg4 {[%emt 00:01:53] [%clk 00:05:48]} 19. f3
{[%emt 00:00:40] [%clk 00:04:51]} Bd7 {[%emt 00:00:03] [%clk 00:05:55]} 20. f4
{[%emt 00:00:04] [%clk 00:04:58]} Nxd4 {[%emt 00:04:10] [%clk 00:01:54]} 21. Bc3
{[%emt 00:03:13] [%clk 00:01:56]} Rxe3 {[%emt 00:00:05] [%clk 00:01:59]} 22.
Rxe3 {[%emt 00:00:16] [%clk 00:01:50]} Bxf4 {[%emt 00:00:02] [%clk 00:02:07]}
23. Nf1 {[%emt 00:00:55] [%clk 00:01:05]} Nf5 {[%emt 00:01:09] [%clk 00:01:08]}
24. Bxf5 {[%emt 00:00:16] [%clk 00:00:59]} Bxe3+ {[%emt 00:00:02] [%clk
00:01:16]} 25. Nxe3 {[%emt 00:00:09] [%clk 00:01:00]} Qxe3+ {[%emt 00:00:02]
[%clk 00:01:24]} 26. Kh1 {[%emt 00:00:01] [%clk 00:01:07]} Qxg5 {[%emt 00:00:17]
[%clk 00:01:18]} 27. Bxf6 {[%emt 00:00:44] [%clk 00:00:33]} Qxf5 {[%emt
00:00:04] [%clk 00:01:25]} 28. Qd4 {[%clk 00:00:42]} Qe4 {[%emt 00:01:15] [%clk
00:00:20]} 29. Qd2 {[%emt 00:00:27] [%clk 00:00:25]} Qf5 {[%emt 00:00:11] [%clk
00:00:20]} 30. Qd4 {[%clk 00:00:34]} Re8 {[%emt 00:00:08] [%clk 00:00:21]} 31.
Bh8 {[%emt 00:00:30] [%clk 00:00:14]} f6 {[%emt 00:00:02] [%clk 00:00:30]} 32.
Bxf6 {[%emt 00:00:04] [%clk 00:00:19]} Rf8 {[%emt 00:00:22] [%clk 00:00:19]} 33.
Be5 {[%emt 00:00:18] [%clk 00:00:12]} Qf1+ {[%emt 00:00:14] [%clk 00:00:14]} 34.
Rxf1 {[%emt 00:00:03] [%clk 00:00:19]} Rxf1+ {[%emt 00:00:01] [%clk 00:00:23]}
35. Qg1 {[%clk 00:00:28]} Rxg1+ {[%emt 00:00:02] [%clk 00:00:31]} 36. Kxg1
{[%emt 00:00:01] [%clk 00:00:37]} Kf7 {[%emt 00:00:27] [%clk 00:00:14]} 37. Kf2
{[%emt 00:00:17] [%clk 00:00:30]} Ke6 {[%emt 00:00:03] [%clk 00:00:21]} 38. Bd4
{[%emt 00:00:26] [%clk 00:00:13]} a6 {[%emt 00:00:19] [%clk 00:00:12]} 39. Ke3
{[%emt 00:00:07] [%clk 00:00:16]} Kd6 {[%emt 00:00:06] [%clk 00:00:17]} 40. a3
{[%emt 00:00:06] [%clk 00:00:21]} Bf5 {[%emt 00:00:13] [%clk 00:00:13]} 41. Bc3
{[%emt 00:00:16] [%clk 00:00:15]} h5 {[%emt 00:00:10] [%clk 00:00:13]} 42. h4
{[%emt 00:00:10] [%clk 00:00:15]} Bc2 {[%emt 00:00:09] [%clk 00:00:14]} 43. g3
{[%emt 00:00:13] [%clk 00:00:12]} Be4 {[%emt 00:00:02] [%clk 00:00:22]} 44. Kd4
{[%emt 00:00:11] [%clk 00:00:11]} Bc2 {[%emt 00:00:14] [%clk 00:00:18]} 45. Ke3
{[%emt 00:00:02] [%clk 00:00:19]} Kc5 {[%emt 00:00:03] [%clk 00:00:25]} 46. Bb4+
{[%clk 00:00:28]} Kb6 {[%emt 00:00:06] [%clk 00:00:29]} 47. Kd4 {[%emt 00:00:04]
[%clk 00:00:34]} Be4 {[%emt 00:00:08] [%clk 00:00:30]} 48. Bc3 {[%emt 00:00:18]
[%clk 00:00:26]} Bg2 {[%emt 00:00:24] [%clk 00:00:17]} 49. Bb4 {[%emt 00:00:08]
[%clk 00:00:28]} Kc6 {[%emt 00:00:02] [%clk 00:00:25]} 50. Ke5 {[%emt 00:00:08]
[%clk 00:00:30]} Kd7 {[%emt 00:00:03] [%clk 00:00:32]} 51. Bc3 {[%emt 00:00:09]
[%clk 00:00:31]} Ke7 {[%emt 00:00:05] [%clk 00:00:37]} 52. Bb4+ {[%emt 00:00:12]
[%clk 00:00:28]} Kf7 {[%emt 00:00:03] [%clk 00:00:43]} 53. Bc3 {[%emt 00:00:04]
[%clk 00:00:35]} Ke7 {[%emt 00:00:41] [%clk 00:00:13]} 54. Bb4+ {[%clk
00:00:44]} Kd7 {[%emt 00:00:01] [%clk 00:00:22]} 55. Bc3 {[%emt 00:00:23] [%clk
00:00:30]} Kc6 {[%emt 00:00:02] [%clk 00:00:31]} 56. Bb4 {[%emt 00:00:08] [%clk
00:00:32]} Kb6 {[%emt 00:00:02] [%clk 00:00:39]} 57. Kd4 {[%emt 00:00:02] [%clk
00:00:39]} a5 {[%emt 00:00:05] [%clk 00:00:45]} 58. Bd2 {[%emt 00:00:03] [%clk
00:00:45]} Bh1 {[%emt 00:00:34] [%clk 00:00:21]} 59. Bc3 {[%emt 00:00:08] [%clk
00:00:47]} b4 {[%emt 00:00:05] [%clk 00:00:27]} 60. axb4 {[%emt 00:00:04] [%clk
00:00:53]} a4 {[%emt 00:00:01] [%clk 00:00:36]} 61. Be1 {[%emt 00:00:49]} Be4
{[%clk 00:00:22]} 62. Bc3 {[%emt 00:00:18] [%clk 00:00:30]} Kc6 {[%emt 00:00:02]
[%clk 00:00:30]} 63. Ke5 {[%emt 00:00:05] [%clk 00:00:34]} Kb5 {[%emt 00:00:21]
[%clk 00:00:19]} 1/2-1/2

[Site "Europe Echecs"]